fUSD/lending_fUSD_20240412
["ID","MTS","AMOUNT","RATE_DAILY","PERIOD"]
[322276753,1712928644409,-380.0,0.00039724,2]
[322276754,1712928644420,-509.0,0.00039726,7]
[322276755,1712928644429,-282.07950836,0.00039745,2]
[322276756,1712928644438,-154.30704408,0.0003979,7]
[322276757,1712928644448,-3251.43423139,0.00039808,9]
[322276758,1712928644458,-200.0,0.00039898,15]
[322276759,1712928644467,-1000.0,0.00039898,20]
[322276760,1712928644476,-500.0,0.00039898,20]
[322276761,1712928644485,-500.0,0.00039898,20]
[322276762,1712928644495,-200.0,0.00039898,20]
[322276763,1712928644504,-150.91,0.00039922,2]
[322276764,1712928644513,-500.0,0.00039999,31]
[322276765,1712928644523,-500.0,0.00039999,31]
[322276766,1712928644532,-256.41500668,0.00039999,31]
[322276767,1712928644541,-193.0576741,0.0004,2]
[322276768,1712928644551,-22126.04814087,0.0004,4]
[322276769,1712928644561,-648.71576027,0.0004,2]
[322276770,1712928644571,-909.71868261,0.0004,30]
[322276771,1712928644581,-300.0,0.0004,3]
[322276772,1712928644590,-154.95930831,0.00040017,30]
[322276773,1712928644599,-1013.88,0.0004012,2]
[322276774,1712928644609,-154.26775918,0.00040242,30]
[322276775,1712928644619,-678.77345794,0.000403,2]
[322276776,1712928644628,-9647.79459678,0.00040324,2]
[322276777,1712928644638,-155.67762889,0.00040462,30]
[322276778,1712928644647,-343.50501476,0.00040493,14]
[322276779,1712928644657,-154.59,0.000405,4]
[322276780,1712928644666,-154.59,0.000405,4]
[322276781,1712928644676,-154.59,0.000405,4]
[322276782,1712928644685,-154.59,0.000405,4]
[322276783,1712928644694,-154.59,0.000405,4]
[322276784,1712928644704,-154.59,0.000405,4]
[322276785,1712928644713,-154.59,0.000405,4]
[322276786,1712928644722,-154.59,0.000405,4]
[322276787,1712928644731,-154.59,0.000405,4]
[322276788,1712928644741,-154.59,0.000405,4]
[322276789,1712928644751,-154.95930831,0.00040537,30]
[322276790,1712928644761,-1340.45,0.000406,4]
[322276791,1712928644771,-1340.45,0.000406,4]
[322276792,1712928644781,-1340.45,0.000406,4]
[322276793,1712928644790,-1340.45,0.000406,4]
[322276794,1712928644799,-1340.45,0.000406,4]
[322276795,1712928644810,-1340.45,0.000406,4]
[322276796,1712928644819,-1340.45,0.000406,4]
[322276797,1712928644829,-1340.45,0.000406,4]
[322276798,1712928644840,-1340.45,0.000406,4]
[322276799,1712928644849,-1340.45,0.000406,4]
[322276800,1712928644859,-1340.45,0.000406,4]
[322276801,1712928644869,-1340.45,0.000406,4]
[322276802,1712928644878,-1340.45,0.000406,4]
[322276803,1712928644888,-1340.45,0.000406,4]
[322276804,1712928644897,-1340.45,0.000406,4]
[322276805,1712928644906,-1340.45,0.000406,4]
[322276806,1712928644915,-1340.45,0.000406,4]
[322276807,1712928644925,-1340.45,0.000406,4]
[322276808,1712928644934,-1340.45,0.000406,4]
[322276809,1712928644944,-1340.45,0.000406,4]
[322276810,1712928644953,-152.32027783,0.00040601,30]
[322276811,1712928644962,-154.26775918,0.00040619,30]
[322276812,1712928644972,-1639.27188,0.0004062,2]
[322276813,1712928644981,-1000.0,0.00040626,2]
[322276814,1712928644991,-484.79,0.00040767,15]
[322276815,1712928645001,-153.88565636,0.00040908,30]
[322276816,1712928645011,-1013.88,0.0004098,2]
[322276817,1712928645022,-154.26775918,0.0004105,30]
[322276818,1712928645031,-282.07950836,0.00041091,2]
[322276819,1712928645040,-150.91,0.00041096,2]
[322276820,1712928645049,-157.0,0.00041096,2]
[322276821,1712928645061,-509.0,0.00041096,7]
[322276822,1712928645071,-3684.94021615,0.000411,2]
[322276823,1712928645081,-150.93,0.00041228,2]
[322276824,1712928645090,-436.0,0.00041238,2]
[322276825,1712928645099,-807.0,0.00041238,2]
[322276826,1712928645109,-1947.0,0.00041238,2]
[322276827,1712928645119,-608.0,0.00041238,2]
[322276828,1712928645129,-280.0,0.00041238,2]
[322276829,1712928645137,-1140.0,0.00041238,2]
[322276830,1712928645146,-1471.0,0.00041238,2]
[322276831,1712928645156,-398.0,0.00041238,2]
[322276832,1712928645165,-150.0,0.00041238,2]
[322276833,1712928645174,-3041.0,0.00041238,2]
[322276834,1712928645183,-150.0,0.00041238,2]
[322276835,1712928645192,-2438.0,0.00041238,2]
[322276836,1712928645201,-1636.0,0.00041238,2]
[322276837,1712928645211,-214.0,0.00041238,2]
[322276838,1712928645220,-354.0,0.00041238,2]
[322276839,1712928645229,-442.0,0.00041238,2]
[322276840,1712928645239,-1390.0,0.00041238,2]
[322276841,1712928645248,-5715.0,0.00041238,2]
[322276842,1712928645258,-967.0,0.00041238,2]
[322276843,1712928645268,-4799.0,0.00041238,2]
[322276844,1712928645277,-1314.0,0.00041238,2]
[322276845,1712928645286,-37595.0,0.00041238,2]
[322276846,1712928645296,-2464.0,0.00041238,2]
[322276847,1712928645308,-460.0,0.00041238,2]
[322276848,1712928645320,-2289.0,0.00041238,2]
[322276849,1712928645330,-587.83332007,0.00041263,2]
[322276850,1712928645339,-343.50501476,0.00041533,15]
[322276851,1712928645350,-154.14042622,0.00041719,30]
[322276852,1712928645360,-1013.88,0.0004184,2]
[322276853,1712928645369,-324.64,0.00041897,2]
[322276854,1712928645379,-1493.76081878,0.00041916,10]
[322276855,1712928645389,-154.53423204,0.00042117,30]
[322276856,1712928645399,-153.24126343,0.00042172,30]
[322276857,1712928645409,-150.91,0.0004227,2]
[322276858,1712928645419,-282.07950836,0.00042437,2]
[322276859,1712928645429,-512.0,0.00042466,7]
[322276860,1712928645438,-154.57743464,0.00042529,30]
[322276861,1712928645448,-343.50501476,0.00042574,17]
[322276862,1712928645473,-150.0,0.000426,7]
[322276863,1712928645482,-153.24126343,0.00042633,30]
[322276865,1712928645492,-1013.88,0.000427,2]
[322276867,1712928645501,-154.26775918,0.00042779,30]
[322276869,1712928645513,-3251.43423139,0.00042799,11]
[322276872,1712928645523,-45496.24250715,0.00043,10]
[322276873,1712928645533,-156.56,0.00043053,2]
[322276874,1712928645542,-154.95930831,0.0004306,30]
[322276875,1712928645551,-150.0,0.000431,7]
[322276876,1712928645561,-166.66666667,0.00043115,30]
[322276877,1712928645570,-150.93,0.0004331,2]
[322276878,1712928645579,-166891.96848363,0.0004332,15]
[322276879,1712928645589,-155.93706503,0.00043411,19]
[322276880,1712928645599,-150.91,0.00043444,2]
[322276881,1712928645608,-484.79,0.00043507,15]
[322276882,1712928645618,-6926.40813717,0.00043516,2]
[322276883,1712928645628,-678.77345794,0.00043533,2]
[322276884,1712928645637,-1013.88,0.0004356,2]
[322276885,1712928645646,-9647.79459678,0.00043561,2]
[322276886,1712928645656,-150.0,0.000436,7]
[322276887,1712928645665,-343.50501476,0.00043615,18]
[322276888,1712928645674,-153.24126343,0.00043701,30]
[322276889,1712928645683,-155.67762889,0.00043716,30]
[322276890,1712928645692,-282.07950836,0.00043783,2]
[322276891,1712928645702,-512.0,0.00043835,7]
[322276892,1712928645711,-4225.64,0.00043836,2]
[322276893,1712928645720,-10846.37,0.00043836,2]
[322276894,1712928645730,-500.0,0.00043836,17]
[322276895,1712928645739,-153.24126343,0.00043953,30]
[322276896,1712928645748,-1723.857658,0.00044,44]
[322276897,1712928645758,-154.53453383,0.0004408,50]
[322276898,1712928645767,-154.59,0.000441,4]
[322276899,1712928645777,-154.59,0.000441,4]
[322276900,1712928645787,-154.59,0.000441,4]
[322276901,1712928645796,-154.59,0.000441,4]
[322276902,1712928645805,-154.59,0.000441,4]
[322276903,1712928645814,-154.59,0.000441,4]
[322276904,1712928645824,-154.59,0.000441,4]
[322276905,1712928645833,-154.59,0.000441,4]
[322276906,1712928645843,-154.59,0.000441,4]
[322276907,1712928645853,-154.59,0.000441,4]
[322276908,1712928645862,-150.0,0.000441,7]
[322276909,1712928645871,-152.0,0.00044157,3]
[322276910,1712928645881,-324.64,0.00044161,2]
[322276911,1712928645890,-1340.45,0.000442,5]
[322276912,1712928645900,-1340.45,0.000442,5]
[322276913,1712928645909,-1340.45,0.000442,5]
[322276914,1712928645920,-1340.45,0.000442,5]
[322276915,1712928645929,-1340.45,0.000442,5]
[322276916,1712928645980,-1340.45,0.000442,5]
[322276917,1712928645990,-1340.45,0.000442,5]
[322276918,1712928645999,-1340.45,0.000442,5]
[322276919,1712928646009,-1340.45,0.000442,5]
[322276920,1712928646018,-1340.45,0.000442,5]
[322276921,1712928646027,-1340.45,0.000442,5]
[322276922,1712928646037,-1340.45,0.000442,5]
[322276923,1712928646046,-1340.45,0.000442,5]
[322276924,1712928646055,-1340.45,0.000442,5]
[322276925,1712928646065,-1340.45,0.000442,5]
[322276926,1712928646074,-1340.45,0.000442,5]
[322276927,1712928646084,-1340.45,0.000442,5]
[322276928,1712928646094,-1340.45,0.000442,5]
[322276929,1712928646103,-1340.45,0.000442,5]
[322276930,1712928646113,-1340.45,0.000442,5]
[322276931,1712928646122,-153.24126343,0.00044229,30]
[322276932,1712928646131,-436.0,0.00044238,2]
[322276933,1712928646140,-804.0,0.00044238,2]
[322276934,1712928646150,-1941.0,0.00044238,2]
[322276935,1712928646158,-608.0,0.00044238,2]
[322276936,1712928646167,-278.0,0.00044238,2]
[322276937,1712928646177,-1140.0,0.00044238,2]
[322276938,1712928646186,-1471.0,0.00044238,2]
[322276939,1712928646195,-398.0,0.00044238,2]
[322276940,1712928646204,-3041.0,0.00044238,2]
[322276941,1712928646213,-150.0,0.00044238,2]
[322276942,1712928646222,-2438.0,0.00044238,2]
[322276944,1712928646231,-1636.0,0.00044238,2]
[322276945,1712928646240,-354.0,0.00044238,2]
[322276946,1712928646249,-442.0,0.00044238,2]
[322276947,1712928646258,-1390.0,0.00044238,2]
[322276948,1712928646267,-5677.0,0.00044238,2]
[322276949,1712928646276,-967.0,0.00044238,2]
[322276950,1712928646285,-4769.0,0.00044238,2]
[322276951,1712928646295,-1314.0,0.00044238,2]
[322276952,1712928646308,-37595.0,0.00044238,2]
[322276953,1712928646317,-2447.0,0.00044238,2]
[322276954,1712928646326,-460.0,0.00044238,2]
[322276955,1712928646335,-2289.0,0.00044238,2]
[322276956,1712928646344,-1013.88,0.0004442,2]
[322276957,1712928646354,-150.0,0.000446,8]
[322276958,1712928646363,-150.91,0.00044618,2]
[322276959,1712928646372,-343.50501476,0.00044656,19]
[322276960,1712928646381,-154.53423204,0.00044675,30]
[322276961,1712928646392,-274.62,0.00044701,2]
[322276962,1712928646401,-244.75,0.00044701,2]
[322276963,1712928646410,-154.95930831,0.00044703,30]
[322276964,1712928646420,-154.26775918,0.00044794,30]
[322276965,1712928646429,-13559.04758957,0.000448,30]
[322276966,1712928646438,-156.08416384,0.00044803,30]
[322276967,1712928646447,-501.20231863,0.00045,2]
[322276968,1712928646456,-1031.0,0.00045,20]
[322276969,1712928646465,-5006.04026374,0.00045,120]
[322276970,1712928646475,-1000.0,0.00045,2]
[322276971,1712928646484,-154.53423204,0.00045009,30]
[322276972,1712928646493,-153.24126343,0.00045024,30]
[322276973,1712928646503,-150.0,0.000451,8]
[322276974,1712928646512,-282.07950836,0.00045129,2]
[322276975,1712928646522,-512.0,0.00045205,7]
[322276976,1712928646531,-156.33363119,0.0004527,30]
[322276977,1712928646540,-1013.88,0.0004528,2]
[322276978,1712928646549,-150.0,0.000455,8]
[322276979,1712928646559,-156.08416384,0.00045528,30]
[322276980,1712928646568,-150.0,0.000456,8]
[322276981,1712928646577,-1639.27188,0.0004562,2]
[322276982,1712928646586,-1013.87962243,0.00045644,10]
[322276983,1712928646596,-150.0,0.00045669,2]
[322276984,1712928646605,-150.0,0.00045684,2]
[322276985,1712928646614,-343.50501476,0.00045696,21]
[322276986,1712928646624,-150.0,0.00045732,2]
[322276987,1712928646633,-150.0,0.00045779,2]
[322276988,1712928646642,-150.0,0.00045788,2]
[322276989,1712928646652,-3251.43423139,0.00045789,12]
[322276990,1712928646661,-150.91,0.00045793,2]
[322276991,1712928646670,-150.0,0.00045804,2]
[322276992,1712928646679,-150.0,0.00045809,2]
[322276993,1712928646689,-150.0,0.00045811,2]
[322276994,1712928646698,-150.0,0.00045811,2]
[322276995,1712928646707,-150.0,0.00045819,2]
[322276996,1712928646716,-150.0,0.00045825,2]
[322276997,1712928646725,-150.0,0.00045826,2]
[322276998,1712928646734,-150.0,0.00045834,2]
[322276999,1712928646743,-150.0,0.0004589,2]
[322277000,1712928646752,-150.0,0.00045892,2]
[322277001,1712928646761,-150.0,0.00045898,2]
[322277002,1712928646770,-340.04369147,0.000459,2]
[322277003,1712928646779,-150.0,0.00045919,2]
[322277004,1712928646789,-150.0,0.00045936,2]
[322277005,1712928646798,-150.0,0.00045972,2]
[322277006,1712928646807,-150.0,0.00045974,2]
[322277007,1712928646816,-150.0,0.00045975,2]
[322277008,1712928646825,-204.99865097,0.0004599,2]
[322277009,1712928646834,-460.92429822,0.00046,2]
[322277010,1712928646843,-70738.22102907,0.00046,30]
[322277011,1712928647048,-1347.75517171,0.00046,30]
[322277012,1712928647060,-3172.77537529,0.00046,30]
[322277013,1712928647072,-2458.00388156,0.00046,30]
[322277014,1712928647088,-5934.59064539,0.00046,30]
[322277015,1712928647100,-2740.155706,0.00046,30]
[322277016,1712928647112,-394.58101345,0.00046,30]
[322277017,1712928647124,-561.36604111,0.00046,30]
[322277018,1712928647135,-566.08002,0.00046,30]
[322277019,1712928647147,-662.0,0.00046,30]
[322277020,1712928647178,-653.00020086,0.00038238,2]
[322277021,1712928647190,-399.99979914,0.00038238,2]
[322277022,1712928647199,-58584.03401231,0.00046,30]
[322277023,1712928647211,-842692.25036838,0.00046,30]
[322277024,1712928647502,-521.0,0.00037099,4]
[322277025,1712928647514,-3369.61984,0.00037099,4]
[322277026,1712928647529,-61.99518071,0.00037099,4]
[322277027,1712928647539,-1053.0,0.00041238,2]
[322277028,1712928647548,-758.924,0.00044238,2]
[322277029,1712928647557,-10148.18673573,0.00046,30]
[322277030,1712928647566,-160.03162462,0.00046,15]
[322277031,1712928647575,-2534.36426838,0.00046,12]
[322277032,1712928647585,-2000.0,0.00046,90]
[322277033,1712928647593,-1828.26938459,0.00046,7]
[322277034,1712928647605,-6240.86884912,0.00046,7]
[322277035,1712928647616,-1201.2000172,0.00046,7]
[322277036,1712928647627,-695.695,0.00046,7]
[322277037,1712928647639,-2816.96674909,0.00046,7]
[322277038,1712928647648,-329.31,0.00046,7]
[322277039,1712928647657,-252.14,0.00046,7]
[322277040,1712928647666,-150.0,0.00046,8]
[322277041,1712928647675,-150.0,0.00046006,2]
[322277042,1712928647684,-150.0,0.0004602,2]
[322277043,1712928647693,-150.0,0.00046029,2]
[322277044,1712928647703,-150.0,0.00046036,2]
[322277045,1712928647712,-153.24126346,0.00046037,30]
[322277046,1712928647722,-150.0,0.00046043,2]
[322277047,1712928647731,-150.0,0.00046046,2]
[322277048,1712928647740,-150.0,0.00046057,2]
[322277049,1712928647750,-150.0,0.0004606,2]
[322277050,1712928647759,-150.0,0.00046087,2]
[322277051,1712928647768,-150.0,0.00046089,2]
[322277052,1712928647777,-150.0,0.0004609,2]
[322277053,1712928647786,-150.0,0.00046092,2]
[322277054,1712928647796,-150.0,0.00046098,2]
[322277055,1712928647805,-150.0,0.000461,8]
[322277056,1712928647814,-150.0,0.00046101,2]
[322277057,1712928647823,-150.0,0.00046103,2]
[322277058,1712928647833,-150.0,0.00046121,2]
[322277059,1712928647843,-150.0,0.00046124,2]
[322277060,1712928647853,-150.0,0.00046129,2]
[322277061,1712928647862,-150.0,0.00046133,2]
[322277062,1712928647871,-1013.88,0.0004614,2]
[322277063,1712928647880,-150.0,0.00046146,2]
[322277064,1712928647889,-150.0,0.00046158,2]
[322277065,1712928647898,-150.0,0.00046159,2]
[322277066,1712928647908,-150.0,0.00046162,2]
[322277067,1712928647918,-150.0,0.00046163,2]
[322277068,1712928647928,-150.0,0.00046165,2]
[322277069,1712928647937,-150.0,0.0004617,2]
[322277070,1712928647947,-150.0,0.00046173,2]
[322277071,1712928647957,-150.0,0.00046207,2]
[322277072,1712928647966,-150.0,0.00046216,2]
[322277073,1712928647976,-150.0,0.00046221,2]
[322277074,1712928647985,-150.0,0.00046226,2]
[322277075,1712928647995,-150.0,0.00046228,2]
[322277076,1712928648005,-150.0,0.00046229,2]
[322277077,1712928648014,-150.0,0.0004623,2]
[322277078,1712928648024,-150.0,0.0004623,2]
[322277079,1712928648033,-150.0,0.00046236,2]
[322277080,1712928648043,-150.0,0.0004624,2]
[322277081,1712928648053,-484.79,0.00046247,15]
[322277082,1712928648062,-150.0,0.00046248,2]
[322277083,1712928648072,-150.0,0.00046255,2]
[322277084,1712928648082,-150.0,0.0004627,2]
[322277085,1712928648091,-150.0,0.0004627,2]
[322277086,1712928648102,-1000.0,0.00046284,50]
[322277087,1712928648113,-500.0,0.00046284,30]
[322277088,1712928648122,-500.0,0.00046284,30]
[322277089,1712928648131,-150.0,0.00046284,2]
[322277090,1712928648142,-150.0,0.00046311,2]
[322277091,1712928648152,-150.0,0.00046316,2]
[322277092,1712928648161,-150.0,0.00046324,2]
[322277093,1712928648170,-150.0,0.00046331,2]
[322277094,1712928648181,-150.0,0.00046343,2]
[322277095,1712928648192,-154.26775918,0.00046357,30]
[322277096,1712928648202,-150.0,0.00046371,2]
[322277097,1712928648211,-150.0,0.00046375,2]
[322277098,1712928648222,-150.0,0.00046383,2]
[322277099,1712928648232,-329.31,0.000464,7]
[322277100,1712928648242,-252.14,0.000464,7]
[322277101,1712928648252,-648.0,0.00046411,30]
[322277102,1712928648261,-444.0,0.00046411,30]
[322277103,1712928648271,-150.0,0.00046414,2]
[322277104,1712928648281,-150.0,0.0004642,2]
[322277105,1712928648292,-324.64,0.00046425,2]
[322277106,1712928648302,-150.0,0.00046446,2]
[322277107,1712928648315,-150.0,0.00046464,2]
[322277108,1712928648325,-1500.0,0.00046473,2]
[322277109,1712928648335,-282.07950836,0.00046475,2]
[322277110,1712928648346,-469.14713706,0.00046475,41]
[322277111,1712928648355,-150.0,0.00046477,2]
[322277112,1712928648364,-150.0,0.00046487,2]
[322277113,1712928648374,-150.0,0.00046491,2]
[322277114,1712928648383,-150.0,0.00046493,2]
[322277115,1712928648393,-27273.23,0.000465,31]
[322277116,1712928648405,-150.0,0.000465,8]
[322277117,1712928648414,-150.0,0.00046507,2]
[322277118,1712928648423,-1500.0,0.00046509,2]
[322277119,1712928648433,-150.0,0.00046551,2]
[322277120,1712928648443,-204.99865097,0.00046565,2]
[322277121,1712928648452,-150.0,0.00046569,2]
[322277122,1712928648462,-150.0,0.00046569,2]
[322277123,1712928648471,-585.54569715,0.00046572,10]
[322277124,1712928648480,-13532.24823383,0.00046572,30]
[322277125,1712928648494,-7760.39203124,0.00046572,30]
[322277126,1712928648504,-282.60423576,0.00046572,4]
[322277127,1712928648514,-462.094188,0.00046572,4]
[322277128,1712928648523,-155.0,0.00046572,2]
[322277129,1712928648533,-206.00107044,0.00046572,4]
[322277130,1712928648542,-155.2401728,0.00046572,4]
[322277131,1712928648552,-260.47354147,0.00046572,4]
[322277132,1712928648562,-350.0,0.00046572,4]
[322277133,1712928648572,-880.45661014,0.00046572,2]
[322277134,1712928648581,-669.46505008,0.00046572,4]
[322277135,1712928648591,-17784.91234367,0.00046573,30]
[322277136,1712928648601,-197.9729492,0.00046573,4]
[322277137,1712928648610,-275.53453803,0.00046573,4]
[322277138,1712928648620,-598.95650689,0.00046573,4]
[322277139,1712928648629,-150.0,0.00046574,60]
[322277140,1712928648640,-512.0,0.00046575,30]
[322277141,1712928648651,-506.05685866,0.00046575,31]
[322277142,1712928648662,-506.9053882,0.00046575,31]
[322277143,1712928648672,-500.0,0.00046575,31]
[322277144,1712928648681,-509.50450026,0.00046575,31]
[322277145,1712928648690,-508.7404605,0.00046575,31]
[322277146,1712928648700,-527.04980593,0.00046575,31]
[322277147,1712928648728,-216.57,0.00046575,31]
[322277148,1712928648737,-406.27,0.00046575,31]
[322277149,1712928648747,-506.66494919,0.00046575,31]
[322277150,1712928648756,-190.4,0.00046575,31]
[322277151,1712928648766,-500.0,0.00046575,31]
[322277152,1712928648776,-248.82183532,0.00046575,31]
[322277153,1712928648785,-500.0,0.00046575,31]
[322277154,1712928648795,-513.71931441,0.00046575,31]
[322277155,1712928648806,-500.0,0.00046575,31]
[322277156,1712928648815,-500.0,0.00046575,31]
[322277157,1712928648824,-500.0,0.00046575,31]
[322277158,1712928648834,-500.0,0.00046575,31]
[322277159,1712928648843,-500.0,0.00046575,31]
[322277160,1712928648853,-500.0,0.00046575,31]
[322277161,1712928648863,-521.64,0.00046575,31]
[322277162,1712928648874,-500.0,0.00046575,31]
[322277163,1712928648885,-500.0,0.00046575,31]
[322277164,1712928648895,-500.0,0.00046575,31]
[322277165,1712928648904,-500.0,0.00046575,31]
[322277166,1712928648914,-500.0,0.00046575,31]
[322277167,1712928648923,-553.76,0.00046575,31]
[322277168,1712928648933,-500.0,0.00046575,31]
[322277169,1712928648942,-500.0,0.00046575,31]
[322277170,1712928648952,-500.0,0.00046575,31]
[322277171,1712928648962,-500.0,0.00046575,31]
[322277172,1712928648971,-500.0,0.00046575,31]
[322277173,1712928648981,-500.0,0.00046575,31]
[322277174,1712928648991,-500.0,0.00046575,31]
[322277175,1712928649001,-281.90866853,0.00046575,31]
[322277176,1712928649010,-500.0,0.00046575,31]
[322277177,1712928649020,-500.0,0.00046575,31]
[322277178,1712928649030,-611.55,0.00046575,31]
[322277179,1712928649039,-300.0,0.00046575,7]
[322277180,1712928649049,-720.48,0.00046575,2]
[322277181,1712928649058,-434.0428835,0.00046575,31]
[322277182,1712928649068,-500.0,0.00046575,31]
[322277183,1712928649078,-500.0,0.00046575,31]
[322277184,1712928649087,-500.0,0.00046575,31]
[322277185,1712928649097,-500.0,0.00046575,31]
[322277186,1712928649106,-500.0,0.00046575,31]
[322277187,1712928649116,-500.0,0.00046575,31]
[322277188,1712928649126,-150.0,0.00046575,31]
[322277189,1712928649135,-205.3248476,0.00046575,31]
[322277190,1712928649145,-500.0,0.00046575,31]
[322277191,1712928649155,-500.0,0.00046575,31]
[322277192,1712928649165,-500.0,0.00046575,31]
[322277193,1712928649175,-500.0,0.00046575,31]
[322277194,1712928649185,-500.0,0.00046575,31]
[322277195,1712928649194,-500.0,0.00046575,31]
[322277196,1712928649204,-500.0,0.00046575,31]
[322277197,1712928649214,-500.0,0.00046575,31]
[322277198,1712928649224,-500.0,0.00046575,31]
[322277199,1712928649234,-556.49973588,0.00046575,31]
[322277200,1712928649244,-500.0,0.00046575,31]
[322277201,1712928649254,-500.0,0.00046575,31]
[322277202,1712928649263,-500.0,0.00046575,31]
[322277203,1712928649273,-500.0,0.00046575,2]
[322277204,1712928649283,-271.8647142,0.00046575,31]
[322277205,1712928649293,-1000.0,0.00046575,120]
[322277206,1712928649303,-500.0,0.00046575,31]
[322277207,1712928649318,-509.37436161,0.00046575,31]
[322277208,1712928649327,-500.0,0.00046575,31]
[322277209,1712928649338,-572.16,0.00046575,31]
[322277210,1712928649348,-616.4180905,0.00046575,31]
[322277211,1712928649358,-567.16762757,0.00046575,31]
[322277212,1712928649368,-500.0,0.00046575,31]
[322277213,1712928649378,-500.0,0.00046575,31]
[322277214,1712928649388,-500.0,0.00046575,31]
[322277215,1712928649399,-500.0,0.00046575,31]
[322277216,1712928649409,-500.0,0.00046575,31]
[322277217,1712928649418,-281.98093537,0.00046575,31]
[322277218,1712928649428,-500.0,0.00046575,31]
[322277219,1712928649438,-500.0,0.00046575,31]
[322277220,1712928649448,-515.14897453,0.00046575,31]
[322277221,1712928649457,-500.0,0.00046575,31]
[322277222,1712928649467,-500.0,0.00046575,31]
[322277223,1712928649477,-500.0,0.00046575,31]
[322277224,1712928649487,-265.77117395,0.00046575,31]
[322277225,1712928649497,-500.0,0.00046575,31]
[322277226,1712928649507,-506.24424965,0.00046575,31]
[322277227,1712928649518,-500.0,0.00046575,31]
[322277228,1712928649529,-500.0,0.00046575,31]
[322277229,1712928649539,-500.0,0.00046575,31]
[322277230,1712928649551,-500.0,0.00046575,31]
[322277231,1712928649562,-500.0,0.00046575,31]
[322277232,1712928649571,-500.0,0.00046575,31]
[322277233,1712928649581,-500.0,0.00046575,31]
[322277234,1712928649591,-500.0,0.00046575,31]
[322277235,1712928649600,-500.0,0.00046575,31]
[322277236,1712928649610,-409.44019035,0.00046575,31]
[322277237,1712928649620,-500.0,0.00046575,31]
[322277238,1712928649629,-500.0,0.00046575,31]
[322277239,1712928649639,-500.0,0.00046575,31]
[322277240,1712928649648,-500.0,0.00046575,31]
[322277241,1712928649658,-500.0,0.00046575,31]
[322277242,1712928649668,-500.0,0.00046575,31]
[322277243,1712928649677,-500.0,0.00046575,31]
[322277244,1712928649687,-500.0,0.00046575,31]
[322277245,1712928649697,-500.0,0.00046575,31]
[322277246,1712928649706,-500.0,0.00046575,31]
[322277247,1712928649719,-500.0,0.00046575,31]
[322277248,1712928649728,-500.0,0.00046575,31]
[322277249,1712928649738,-500.0,0.00046575,31]
[322277250,1712928649753,-500.0,0.00046575,31]
[322277251,1712928649763,-500.0,0.00046575,31]
[322277252,1712928649775,-500.0,0.00046575,31]
[322277253,1712928649784,-500.0,0.00046575,31]
[322277254,1712928649794,-340.10669299,0.00046575,31]
[322277255,1712928649803,-500.0,0.00046575,31]
[322277256,1712928649813,-500.0,0.00046575,31]
[322277257,1712928649825,-500.0,0.00046575,31]
[322277258,1712928649835,-500.0,0.00046575,31]